fUSD/lending_fUSD_20240620
["ID","MTS","AMOUNT","RATE_DAILY","PERIOD"]
[329930553,1718842249000,-500.0,0.00013698,2]
[329930554,1718842249010,-618.91,0.00013698,2]
[329930555,1718842249019,-154.986352,0.00013698,2]
[329930556,1718842249028,-991.95,0.00013698,2]
[329930557,1718842249037,-1003.27,0.00013698,2]
[329930558,1718842249046,-1245.51,0.00013698,2]
[329930559,1718842249056,-526.34,0.00013698,2]
[329930560,1718842249065,-1428.01,0.00013698,2]
[329930561,1718842249074,-151.0,0.00013698,2]
[329930562,1718842249083,-500.0,0.00013698,2]
[329930563,1718842249092,-151.0,0.00013698,2]
[329930564,1718842249102,-450.89239031,0.00013698,2]
[329930565,1718842249111,-151.0,0.00013698,2]
[329930566,1718842249119,-2385.45,0.00013698,2]
[329930567,1718842249129,-151.0,0.00013698,2]
[329930568,1718842249138,-151.0,0.00013698,2]
[329930569,1718842249147,-500.0,0.00013698,2]
[329930570,1718842249157,-500.0,0.00013698,2]
[329930571,1718842249166,-318.7899933,0.00013698,2]
[329930572,1718842249175,-1127.9,0.00013698,2]
[329930573,1718842249184,-1719.94,0.00013698,2]
[329930574,1718842249193,-500.0,0.00013698,2]
[329930575,1718842249202,-500.0,0.00013698,2]
[329930576,1718842249211,-500.0,0.00013698,2]
[329930577,1718842249221,-1018.26,0.00013698,2]
[329930578,1718842249231,-558.93,0.00013698,2]
[329930579,1718842249242,-2307.12,0.00013698,2]
[329930580,1718842249252,-500.0,0.00013698,2]
[329930581,1718842249261,-941.38,0.00013698,2]
[329930582,1718842249271,-500.0,0.00013698,2]
[329930583,1718842249280,-576.56,0.00013698,2]
[329930584,1718842249290,-189.357145,0.00013698,2]
[329930585,1718842249299,-1606.94,0.00013698,2]
[329930586,1718842249308,-500.0,0.00013698,2]
[329930587,1718842249318,-229.652272,0.00013698,2]
[329930588,1718842249328,-1039.25,0.00013698,2]
[329930589,1718842249339,-229.652272,0.00013698,2]
[329930590,1718842249350,-229.652272,0.00013698,2]
[329930591,1718842249360,-229.652272,0.00013698,2]
[329930592,1718842249369,-229.652272,0.00013698,2]
[329930593,1718842249378,-229.652272,0.00013698,2]
[329930594,1718842249389,-229.652272,0.00013698,2]
[329930595,1718842249399,-698.21,0.00013698,2]
[329930596,1718842249410,-2509.29,0.00013698,2]
[329930597,1718842249419,-805.69,0.00013698,2]
[329930598,1718842249428,-1449.7,0.00013698,2]
[329930599,1718842249438,-500.0,0.00013698,2]
[329930600,1718842249447,-500.0,0.00013698,2]
[329930601,1718842249458,-2155.69,0.00013698,2]
[329930602,1718842249468,-658.55,0.00013698,2]
[329930603,1718842249478,-500.0,0.00013698,2]
[329930604,1718842249487,-229.652272,0.00013698,2]
[329930605,1718842249497,-229.652272,0.00013698,2]
[329930606,1718842249507,-229.652272,0.00013698,2]
[329930607,1718842249516,-229.652272,0.00013698,2]
[329930608,1718842249525,-229.652272,0.00013698,2]
[329930609,1718842249535,-229.652272,0.00013698,2]
[329930610,1718842249544,-229.65228,0.00013698,2]
[329930611,1718842249553,-544.79,0.00013698,2]
[329930612,1718842249564,-3301.63,0.00013698,2]
[329930613,1718842249573,-500.0,0.00013698,2]
[329930614,1718842249583,-681.19,0.00013698,2]
[329930615,1718842249594,-1039.09,0.00013698,2]
[329930616,1718842249604,-1747.91,0.00013698,2]
[329930617,1718842249616,-1502.2,0.00013698,2]
[329930618,1718842249627,-738.64,0.00013698,2]
[329930619,1718842249636,-3175.02,0.00013698,2]
[329930620,1718842249646,-653.97,0.00013698,2]
[329930621,1718842249655,-684.01,0.00013698,2]
[329930622,1718842249666,-861.85,0.00013698,2]
[329930623,1718842249675,-1632.91,0.00013698,2]
[329930624,1718842249684,-505.42,0.00013698,2]
[329930625,1718842249694,-242.170085,0.00013698,2]
[329930626,1718842249703,-242.170085,0.00013698,2]
[329930627,1718842249712,-242.170085,0.00013698,2]
[329930628,1718842249721,-242.170085,0.00013698,2]
[329930629,1718842249731,-242.170085,0.00013698,2]
[329930630,1718842249740,-3000.0,0.00013698,2]
[329930631,1718842249750,-242.170085,0.00013698,2]
[329930632,1718842249759,-242.170085,0.00013698,2]
[329930633,1718842249768,-500.0,0.00013698,2]
[329930634,1718842249777,-242.170085,0.00013698,2]
[329930635,1718842249787,-1368.5,0.00013698,2]
[329930636,1718842249795,-55331.89,0.00013698,2]
[329930637,1718842249804,-500.0,0.00013698,2]
[329930638,1718842249814,-242.170085,0.00013698,2]
[329930639,1718842249824,-242.170085,0.00013698,2]
[329930640,1718842249833,-529.47,0.00013698,2]
[329930641,1718842249843,-242.170085,0.00013698,2]
[329930642,1718842249852,-242.170085,0.00013698,2]
[329930643,1718842249862,-242.170085,0.00013698,2]
[329930644,1718842249872,-500.0,0.00013698,2]
[329930645,1718842249881,-653.77,0.00013698,2]
[329930646,1718842249890,-500.0,0.00013698,2]
[329930647,1718842249900,-242.170085,0.00013698,2]
[329930648,1718842249910,-500.0,0.00013698,2]
[329930649,1718842249919,-242.170085,0.00013698,2]
[329930650,1718842249929,-242.170089,0.00013698,2]
[329930651,1718842249938,-784.37,0.00013698,2]
[329930652,1718842249948,-632.29,0.00013698,2]
[329930653,1718842249957,-500.0,0.00013698,2]
[329930654,1718842249966,-4779.9,0.00013698,2]
[329930655,1718842249976,-500.0,0.00013698,2]
[329930656,1718842249985,-500.0,0.00013698,2]
[329930657,1718842249994,-500.0,0.00013698,2]
[329930658,1718842250004,-793.18,0.00013698,2]
[329930659,1718842250013,-5400.31,0.00013698,2]
[329930660,1718842250022,-589.85,0.00013698,2]
[329930661,1718842250032,-500.0,0.00013698,2]
[329930662,1718842250041,-2765.06,0.00013698,2]
[329930663,1718842250050,-1354.78,0.00013698,2]
[329930664,1718842250060,-500.0,0.00013698,2]
[329930665,1718842250069,-11110.11,0.00013698,2]
[329930666,1718842250079,-500.0,0.00013698,2]
[329930667,1718842250088,-151.0,0.00013698,2]
[329930668,1718842250097,-222.893483,0.00013698,2]
[329930669,1718842250107,-968.53,0.00013698,2]
[329930670,1718842250116,-500.0,0.00013698,2]
[329930671,1718842250125,-966.1,0.00013698,2]
[329930672,1718842250135,-500.0,0.00013698,2]
[329930673,1718842250146,-1573.5,0.00013698,2]
[329930674,1718842250157,-868.97,0.00013698,2]
[329930675,1718842250166,-648.6,0.00013698,2]
[329930676,1718842250175,-24439.21,0.00013698,2]
[329930677,1718842250184,-3046.84,0.00013698,2]
[329930678,1718842250194,-1288.96,0.00013698,2]
[329930679,1718842250203,-4292.81,0.00013698,2]
[329930680,1718842250212,-216.610676,0.00013698,2]
[329930681,1718842250222,-216.610676,0.00013698,2]
[329930682,1718842250231,-3442.0,0.00013698,2]
[329930683,1718842250241,-216.610676,0.00013698,2]
[329930684,1718842250256,-216.610676,0.00013698,2]
[329930685,1718842250266,-216.610676,0.00013698,2]
[329930686,1718842250278,-500.0,0.00013698,2]
[329930687,1718842250290,-216.610676,0.00013698,2]
[329930688,1718842250299,-1492.61,0.00013698,2]
[329930689,1718842250309,-216.610676,0.00013698,2]
[329930690,1718842250319,-216.610676,0.00013698,2]
[329930691,1718842250331,-500.0,0.00013698,2]
[329930692,1718842250341,-500.0,0.00013698,2]
[329930693,1718842250351,-216.610676,0.00013698,2]
[329930694,1718842250361,-500.0,0.00013698,2]
[329930695,1718842250380,-216.610676,0.00013698,2]
[329930696,1718842250390,-216.610676,0.00013698,2]
[329930697,1718842250399,-216.610676,0.00013698,2]
[329930698,1718842250410,-216.610676,0.00013698,2]
[329930699,1718842250419,-216.610676,0.00013698,2]
[329930700,1718842250429,-542.26767245,0.00013698,2]
[329930701,1718842250438,-566.25,0.00013698,2]
[329930702,1718842250448,-216.610676,0.00013698,2]
[329930703,1718842250458,-849.52,0.00013698,2]
[329930704,1718842250467,-2531.89,0.00013698,2]
[329930705,1718842250477,-500.0,0.00013698,2]
[329930706,1718842250487,-216.610667,0.00013698,2]
[329930707,1718842250498,-7381.14,0.00013698,2]
[329930708,1718842250507,-257.44359342,0.00013698,2]
[329930709,1718842250518,-677.9,0.00013698,2]
[329930710,1718842250528,-757.09,0.00013698,2]
[329930711,1718842250538,-3695.87,0.00013698,2]
[329930712,1718842250548,-19877.36,0.00013698,2]
[329930713,1718842250558,-997.1,0.00013698,2]
[329930714,1718842250567,-724.82,0.00013698,2]
[329930715,1718842250578,-1984.95,0.00013698,2]
[329930716,1718842250588,-1205.83,0.00013698,2]
[329930717,1718842250598,-151.0,0.00013698,2]
[329930718,1718842250608,-1864.36,0.00013698,2]
[329930719,1718842250617,-151.0,0.00013698,2]
[329930720,1718842250627,-500.0,0.00013698,2]
[329930721,1718842250637,-500.0,0.00013698,2]
[329930722,1718842250647,-151.0,0.00013698,2]
[329930723,1718842250658,-151.0,0.00013698,2]
[329930724,1718842250668,-151.0,0.00013698,2]
[329930725,1718842250677,-6560.07,0.00013698,2]
[329930726,1718842250687,-1472.78,0.00013698,2]
[329930727,1718842250885,-151.0,0.00013698,2]
[329930728,1718842250895,-500.0,0.00013698,2]
[329930729,1718842250905,-500.0,0.00013698,2]
[329930730,1718842250915,-151.0,0.00013698,2]
[329930731,1718842250924,-249.975467,0.00013698,2]
[329930732,1718842250933,-500.0,0.00013698,2]
[329930733,1718842250943,-500.0,0.00013698,2]
[329930734,1718842250952,-972.97,0.00013698,2]
[329930735,1718842250961,-500.0,0.00013698,2]
[329930736,1718842250973,-898.36,0.00013698,2]
[329930737,1718842250984,-500.0,0.00013698,2]
[329930738,1718842250994,-151.0,0.00013698,2]
[329930739,1718842251005,-151.0,0.00013698,2]
[329930740,1718842251015,-661.78,0.00013698,2]
[329930741,1718842251025,-151.0,0.00013698,2]
[329930742,1718842251035,-500.0,0.00013698,2]
[329930743,1718842251046,-151.0,0.00013698,2]
[329930744,1718842251055,-151.0,0.00013698,2]
[329930745,1718842251065,-500.0,0.00013698,2]
[329930746,1718842251074,-151.0,0.00013698,2]
[329930747,1718842251083,-265.08547,0.00013698,2]
[329930748,1718842251092,-2320.5,0.00013698,2]
[329930749,1718842251101,-151.0,0.00013698,2]
[329930750,1718842251110,-151.0,0.00013698,2]
[329930751,1718842251119,-151.0,0.00013698,2]
[329930752,1718842251128,-500.0,0.00013698,2]
[329930753,1718842251137,-151.0,0.00013698,2]
[329930754,1718842251147,-151.0,0.00013698,2]
[329930755,1718842251157,-151.0,0.00013698,2]
[329930756,1718842251166,-752.97,0.00013698,2]
[329930757,1718842251175,-151.0,0.00013698,2]
[329930758,1718842251185,-604.49,0.00013698,2]
[329930759,1718842251194,-4814.62,0.00013698,2]
[329930760,1718842251204,-151.0,0.00013698,2]
[329930761,1718842251213,-1842.86,0.00013698,2]
[329930762,1718842251223,-14852.6,0.00013698,2]
[329930763,1718842251232,-500.0,0.00013698,2]
[329930764,1718842251245,-575.55,0.00013698,2]
[329930765,1718842251255,-715.33,0.00013698,2]
[329930766,1718842251264,-151.0,0.00013698,2]
[329930767,1718842251274,-239.425582,0.00013698,2]
[329930768,1718842251283,-500.0,0.00013698,2]
[329930769,1718842251293,-1604.89,0.00013698,2]
[329930770,1718842251303,-998.81,0.00013698,2]
[329930771,1718842251312,-3130.35,0.00013698,2]
[329930772,1718842251321,-500.0,0.00013698,2]
[329930773,1718842251334,-500.0,0.00013698,2]
[329930774,1718842251343,-777.58,0.00013698,2]
[329930775,1718842251353,-585.57782721,0.00013698,2]
[329930776,1718842251363,-868.1,0.00013698,2]
[329930777,1718842251372,-151.0,0.00013698,2]
[329930778,1718842251382,-2772.56,0.00013698,2]
[329930779,1718842251391,-7497.47,0.00013698,2]
[329930780,1718842251401,-151.0,0.00013698,2]
[329930781,1718842251411,-578.44,0.00013698,2]
[329930782,1718842251420,-151.0,0.00013698,2]
[329930783,1718842251429,-151.0,0.00013698,2]
[329930784,1718842251439,-151.0,0.00013698,2]
[329930785,1718842251448,-151.0,0.00013698,2]
[329930786,1718842251458,-1417.77,0.00013698,2]
[329930787,1718842251467,-151.0,0.00013698,2]
[329930788,1718842251476,-650.3,0.00013698,2]
[329930789,1718842251486,-151.0,0.00013698,2]
[329930790,1718842251495,-151.0,0.00013698,2]
[329930791,1718842251504,-151.0,0.00013698,2]
[329930792,1718842251513,-151.0,0.00013698,2]
[329930793,1718842251522,-500.0,0.00013698,2]
[329930794,1718842251532,-151.0,0.00013698,2]
[329930795,1718842251541,-151.0,0.00013698,2]
[329930796,1718842251551,-151.0,0.00013698,2]
[329930797,1718842251561,-248.686917,0.00013698,2]
[329930798,1718842251571,-9190.59,0.00013698,2]
[329930799,1718842251580,-151.0,0.00013698,2]
[329930800,1718842251589,-757.73,0.00013698,2]
[329930801,1718842251599,-151.0,0.00013698,2]
[329930802,1718842251610,-9528.51,0.00013698,2]
[329930803,1718842251619,-500.0,0.00013698,2]
[329930804,1718842251628,-500.0,0.00013698,2]
[329930805,1718842251637,-1103.41,0.00013698,2]
[329930806,1718842251647,-5413.07,0.00013698,2]
[329930807,1718842251658,-1325.32,0.00013698,2]
[329930808,1718842251668,-1721.16,0.00013698,2]
[329930809,1718842251678,-5000.0,0.00013698,2]
[329930810,1718842251688,-500.0,0.00013698,2]
[329930811,1718842251698,-151.0,0.00013698,2]
[329930812,1718842251710,-151.0,0.00013698,2]
[329930813,1718842251719,-500.0,0.00013698,2]
[329930814,1718842251730,-170.144451,0.00013698,2]
[329930815,1718842251739,-7812.98,0.00013698,2]
[329930816,1718842251749,-501.25253519,0.00013698,2]
[329930817,1718842251758,-500.0,0.00013698,2]
[329930818,1718842251770,-2297.15,0.00013698,2]
[329930819,1718842251779,-151.0,0.00013698,2]
[329930820,1718842251790,-151.0,0.00013698,2]
[329930821,1718842251799,-154.946185,0.00013698,2]
[329930822,1718842251809,-799.25,0.00013698,2]
[329930823,1718842251818,-631.13857946,0.00013698,2]
[329930824,1718842251828,-500.0,0.00013698,2]
[329930825,1718842251837,-821.34,0.00013698,2]
[329930826,1718842251847,-1062.87,0.00013698,2]
[329930827,1718842251856,-4371.07,0.00013698,2]
[329930828,1718842251866,-4072.24,0.00013698,2]
[329930829,1718842251876,-1895.37,0.00013698,2]
[329930830,1718842251889,-500.0,0.00013698,2]
[329930831,1718842251899,-1143.03,0.00013698,2]
[329930832,1718842251911,-338.53605,0.00013698,2]
[329930833,1718842251921,-2422.37,0.00013698,2]
[329930834,1718842251930,-338.53605,0.00013698,2]
[329930835,1718842251939,-338.53605,0.00013698,2]
[329930836,1718842251949,-338.53605,0.00013698,2]
[329930837,1718842251961,-338.53605,0.00013698,2]
[329930838,1718842251971,-151.0,0.00013698,2]
[329930839,1718842251982,-1052.72,0.00013698,2]
[329930840,1718842251991,-500.0,0.00013698,2]
[329930841,1718842252002,-338.53605,0.00013698,2]
[329930842,1718842252011,-151.0,0.00013698,2]
[329930843,1718842252020,-500.0,0.00013698,2]
[329930844,1718842252029,-338.53605,0.00013698,2]
[329930845,1718842252038,-151.0,0.00013698,2]
[329930846,1718842252047,-338.53605,0.00013698,2]
[329930847,1718842252056,-151.0,0.00013698,2]
[329930848,1718842252065,-151.0,0.00013698,2]
[329930849,1718842252075,-151.0,0.00013698,2]
[329930850,1718842252084,-151.0,0.00013698,2]
[329930851,1718842252093,-151.0,0.00013698,2]
[329930852,1718842252102,-1809.69,0.00013698,2]
[329930853,1718842252111,-151.0,0.00013698,2]
[329930854,1718842252120,-338.53605,0.00013698,2]
[329930855,1718842252129,-151.0,0.00013698,2]
[329930856,1718842252139,-338.53605,0.00013698,2]
[329930857,1718842252148,-338.53605,0.00013698,2]
[329930858,1718842252158,-10249.22,0.00013698,2]
[329930859,1718842252167,-1505.48,0.00013698,2]
[329930860,1718842252177,-338.53605,0.00013698,2]
[329930861,1718842252186,-338.53605,0.00013698,2]
[329930862,1718842252195,-3405.28,0.00013698,2]
[329930863,1718842252205,-338.53605,0.00013698,2]
[329930864,1718842252214,-500.0,0.00013698,2]
[329930865,1718842252226,-500.0,0.00013698,2]
[329930866,1718842252237,-338.53605,0.00013698,2]
[329930867,1718842252249,-338.536046,0.00013698,2]
[329930868,1718842252263,-3117.72,0.00013698,2]
[329930869,1718842252272,-568.19,0.00013698,2]
[329930870,1718842252281,-717.63,0.00013698,2]
[329930871,1718842252290,-6366.04,0.00013698,2]
[329930872,1718842252302,-3386.6,0.00013698,2]
[329930873,1718842252311,-1225.03,0.00013698,2]
[329930874,1718842252321,-3363.64,0.00013698,2]
[329930875,1718842252330,-1225.03,0.00013698,2]
[329930876,1718842252340,-1225.03,0.00013698,2]
[329930877,1718842252350,-1225.03,0.00013698,2]
[329930878,1718842252360,-1225.03,0.00013698,2]
[329930879,1718842252369,-500.0,0.00013698,2]
[329930880,1718842252379,-1225.03,0.00013698,2]
[329930881,1718842252388,-1225.03,0.00013698,2]
[329930882,1718842252397,-500.0,0.00013698,2]
[329930883,1718842252407,-1225.03,0.00013698,2]
[329930884,1718842252416,-1225.03,0.00013698,2]
[329930885,1718842252426,-834.36,0.00013698,2]
[329930886,1718842252435,-500.0,0.00013698,2]
[329930887,1718842252445,-1117.06,0.00013698,2]
[329930888,1718842252454,-500.0,0.00013698,2]
[329930889,1718842252463,-1235.12,0.00013698,2]
[329930890,1718842252473,-552.37,0.00013698,2]
[329930891,1718842252482,-500.0,0.00013698,2]
[329930892,1718842252492,-500.0,0.00013698,2]
[329930893,1718842252501,-9765.72,0.00013698,2]
[329930894,1718842252511,-535.05,0.00013698,2]
[329930895,1718842252521,-500.0,0.00013698,2]
[329930896,1718842252531,-648.17,0.00013698,2]
[329930897,1718842252541,-522.69432377,0.00013698,2]
[329930898,1718842252551,-1272.75,0.00013698,2]
[329930899,1718842252560,-3918.13,0.00013698,2]
[329930900,1718842252570,-500.0,0.00013698,2]
[329930901,1718842252579,-4081.6,0.00013698,2]
[329930902,1718842252588,-5840.87,0.00013698,2]
[329930903,1718842252598,-800.22,0.00013698,2]
[329930904,1718842252607,-156.400157,0.00013698,2]
[329930905,1718842252616,-500.0,0.00013698,2]
[329930906,1718842252626,-2429.9,0.00013698,2]
[329930907,1718842252636,-156.400157,0.00013698,2]
[329930908,1718842252647,-151.0,0.00013698,2]
[329930909,1718842252657,-156.400157,0.00013698,2]
[329930910,1718842252666,-151.0,0.00013698,2]
[329930911,1718842252676,-156.400157,0.00013698,2]
[329930912,1718842252687,-156.400157,0.00013698,2]
[329930913,1718842252697,-151.0,0.00013698,2]
[329930914,1718842252707,-151.0,0.00013698,2]
[329930915,1718842252717,-156.400157,0.00013698,2]
[329930916,1718842252729,-816.044358,0.00013698,2]
[329930917,1718842252741,-500.0,0.00013698,2]
[329930918,1718842252752,-5094.64,0.00013698,2]
[329930919,1718842252763,-156.400157,0.00013698,2]
[329930920,1718842252773,-816.044358,0.00013698,2]
[329930921,1718842252784,-816.044358,0.00013698,2]
[329930922,1718842252794,-156.400157,0.00013698,2]
[329930923,1718842252803,-816.044358,0.00013698,2]
[329930924,1718842252814,-816.044358,0.00013698,2]
[329930925,1718842252824,-500.0,0.00013698,2]
[329930926,1718842252836,-1047.39,0.00013698,2]
[329930927,1718842252845,-816.044358,0.00013698,2]
[329930928,1718842252855,-156.400157,0.00013698,2]
[329930929,1718842252864,-816.044358,0.00013698,2]
[329930930,1718842252875,-500.0,0.00013698,2]
[329930931,1718842252884,-156.400157,0.00013698,2]
[329930932,1718842252893,-156.400157,0.00013698,2]
[329930933,1718842252902,-156.400157,0.00013698,2]
[329930934,1718842252912,-156.400157,0.00013698,2]
[329930935,1718842252921,-816.044358,0.00013698,2]
[329930936,1718842252930,-500.0,0.00013698,2]
[329930937,1718842252940,-156.400157,0.00013698,2]
[329930938,1718842252949,-816.044358,0.00013698,2]
[329930939,1718842252958,-156.400157,0.00013698,2]
[329930940,1718842252968,-816.044358,0.00013698,2]
[329930941,1718842252977,-156.400153,0.00013698,2]
[329930942,1718842253297,-816.044358,0.00013698,2]
[329930943,1718842253314,-816.044358,0.00013698,2]
[329930944,1718842253326,-816.044358,0.00013698,2]
[329930945,1718842253336,-543.5,0.00013698,2]
[329930946,1718842253345,-932.67,0.00013698,2]
[329930947,1718842253355,-816.044355,0.00013698,2]
[329930948,1718842253365,-500.0,0.00013698,2]
[329930949,1718842253374,-500.0,0.00013698,2]
[329930950,1718842253384,-1131.11,0.00013698,2]
[329930951,1718842253394,-500.0,0.00013698,2]
[329930952,1718842253404,-16904.06,0.00013698,2]
[329930953,1718842253415,-2631.75,0.00013698,2]
[329930954,1718842253424,-1421.25,0.00013698,2]
[329930955,1718842253434,-2765.21,0.00013698,2]
[329930956,1718842253445,-533.53781591,0.00013698,2]
[329930957,1718842253456,-562.18,0.00013698,2]
[329930958,1718842253466,-10716.34,0.00013698,2]
[329930959,1718842253476,-500.0,0.00013698,2]
[329930960,1718842253487,-243.3862075,0.00013698,2]
[329930961,1718842253496,-4481.41,0.00013698,2]
[329930962,1718842253506,-1189.23,0.00013698,2]
[329930963,1718842253515,-500.0,0.00013698,2]
[329930964,1718842253524,-688.94,0.00013698,2]
[329930965,1718842253533,-151.0,0.00013698,2]
[329930966,1718842253542,-1719.45,0.00013698,2]
[329930967,1718842253552,-676.23,0.00013698,2]
[329930968,1718842253561,-216.418412,0.00013698,2]
[329930969,1718842253570,-1869.74,0.00013698,2]
[329930970,1718842253579,-3565.49,0.00013698,2]
[329930971,1718842253589,-5359.74,0.00013698,2]
[329930972,1718842253598,-500.0,0.00013698,2]
[329930973,1718842253607,-3252.39,0.00013698,2]
[329930974,1718842253617,-5957.27,0.00013698,2]
[329930975,1718842253626,-831.47,0.00013698,2]
[329930976,1718842253635,-570.98,0.00013698,2]
[329930977,1718842253644,-6671.31,0.00013698,2]
[329930978,1718842253653,-1140.4,0.00013698,2]
[329930979,1718842253664,-500.0,0.00013698,2]
[329930980,1718842253673,-545.90100179,0.00013698,2]
[329930981,1718842253683,-827.33,0.00013698,2]
[329930982,1718842253693,-500.0,0.00013698,2]
[329930983,1718842253704,-5168.51,0.00013698,2]
[329930984,1718842253714,-4548.57,0.00013698,2]
[329930985,1718842253725,-500.0,0.00013698,2]
[329930986,1718842253735,-164.957165,0.00013698,2]
[329930987,1718842253745,-5781.55,0.00013698,2]
[329930988,1718842253755,-500.0,0.00013698,2]
[329930989,1718842253764,-1601.43,0.00013698,2]
[329930990,1718842253774,-500.0,0.00013698,2]
[329930991,1718842253783,-500.0,0.00013698,2]
[329930992,1718842253792,-1471.75,0.00013698,2]
[329930993,1718842253801,-2672.01,0.00013698,2]
[329930994,1718842253810,-1196.46,0.00013698,2]
[329930995,1718842253820,-3546.36,0.00013698,2]
[329930996,1718842253829,-500.0,0.00013698,2]
[329930997,1718842253839,-151.0,0.00013698,2]
[329930998,1718842253850,-12638.65,0.00013698,2]
[329930999,1718842253861,-4591.71,0.00013698,2]
[329931000,1718842253872,-500.0,0.00013698,2]
[329931001,1718842253882,-1139.38,0.00013698,2]
[329931002,1718842253891,-1218.75,0.00013698,2]
[329931003,1718842253900,-500.0,0.00013698,2]
[329931004,1718842253910,-500.0,0.00013698,2]
[329931005,1718842253919,-501.28885319,0.00013698,2]
[329931006,1718842253929,-2170.95,0.00013698,2]
[329931007,1718842253938,-520.19,0.00013698,2]
[329931008,1718842253948,-1060.35,0.00013698,2]
[329931009,1718842253957,-500.0,0.00013698,2]
[329931010,1718842253967,-500.0,0.00013698,2]
[329931011,1718842253976,-151.0,0.00013698,2]
[329931012,1718842253988,-151.0,0.00013698,2]
[329931013,1718842253999,-850.6,0.00013698,2]
[329931014,1718842254009,-500.0,0.00013698,2]
[329931015,1718842254018,-151.0,0.00013698,2]
[329931016,1718842254028,-151.0,0.00013698,2]
[329931017,1718842254037,-1253.38,0.00013698,2]
[329931018,1718842254047,-624.38203138,0.00013698,2]
[329931019,1718842254056,-1065.75,0.00013698,2]
[329931020,1718842254066,-500.0,0.00013698,2]
[329931021,1718842254075,-633.35,0.00013698,2]
[329931022,1718842254086,-7708.44,0.00013698,2]
[329931023,1718842254097,-667.15,0.00013698,2]
[329931024,1718842254106,-624.0,0.00013698,2]
[329931025,1718842254116,-669.61,0.00013698,2]
[329931026,1718842254125,-500.0,0.00013698,2]
[329931027,1718842254135,-688.16,0.00013698,2]
[329931028,1718842254145,-500.0,0.00013698,2]
[329931029,1718842254155,-578.2182264,0.00013698,2]
[329931030,1718842254166,-1240.75,0.00013698,2]
[329931031,1718842254176,-3323.9,0.00013698,2]
[329931032,1718842254185,-500.0,0.00013698,2]
[329931033,1718842254195,-500.0,0.00013698,2]
[329931034,1718842254205,-151.0,0.00013698,2]
[329931035,1718842254215,-500.0,0.00013698,2]
[329931036,1718842254224,-8191.34,0.00013698,2]
[329931037,1718842254234,-1086.8,0.00013698,2]
[329931038,1718842254244,-987.64,0.00013698,2]
[329931039,1718842254258,-2253.94,0.00013698,2]
[329931040,1718842254268,-1177.12,0.00013698,2]
[329931041,1718842254278,-4855.78,0.00013698,2]
[329931042,1718842254288,-7049.46,0.00013698,2]
[329931043,1718842254299,-3074.06,0.00013698,2]
[329931044,1718842254308,-8129.32,0.00013698,2]
[329931045,1718842254319,-488.19330138,0.00013698,2]
[329931046,1718842254329,-899.09,0.00013698,2]
[329931047,1718842254344,-765.52,0.00013698,2]
[329931048,1718842254354,-1537.22,0.00013698,2]
[329931049,1718842254364,-500.0,0.00013698,2]
[329931050,1718842254374,-151.0,0.00013698,2]
[329931051,1718842254384,-151.0,0.00013698,2]
[329931052,1718842254394,-151.0,0.00013698,2]